fUST/lending_fUST_20240921
["ID","MTS","AMOUNT","RATE_DAILY","PERIOD"]
[338703452,1726888242270,-500.0,0.0001418,2]
[338703454,1726888242280,-500.0,0.0001418,2]
[338703457,1726888242294,-500.0,0.0001418,2]
[338703459,1726888242304,-500.0,0.0001418,2]
[338703461,1726888242314,-502.42511759,0.0001418,2]
[338703463,1726888242323,-500.0,0.0001418,2]
[338703465,1726888242333,-500.0,0.0001418,2]
[338703467,1726888242343,-500.0,0.0001418,2]
[338703469,1726888242353,-617.62,0.0001418,2]
[338703471,1726888242362,-500.0,0.0001418,2]
[338703473,1726888242372,-500.0,0.0001418,2]
[338703475,1726888242385,-500.0,0.0001418,2]
[338703477,1726888242395,-500.0,0.0001418,2]
[338703479,1726888242404,-500.42112256,0.0001418,2]
[338703481,1726888242414,-500.0,0.0001418,2]
[338703483,1726888242423,-817.09,0.0001418,2]
[338703485,1726888242433,-500.0,0.0001418,2]
[338703487,1726888242442,-500.0,0.0001418,2]
[338703489,1726888242453,-500.0,0.0001418,2]
[338703491,1726888242462,-500.0,0.0001418,2]
[338703493,1726888242473,-500.0,0.0001418,2]
[338703495,1726888242483,-500.0,0.0001418,2]
[338703497,1726888242495,-500.0,0.0001418,2]
[338703499,1726888242506,-173.75331766,0.0001418,2]
[338703501,1726888242518,-500.0,0.0001418,2]
[338703504,1726888242530,-500.0,0.0001418,2]
[338703506,1726888242542,-500.0,0.0001418,2]
[338703508,1726888242552,-500.0,0.0001418,2]
[338703510,1726888242561,-500.0,0.0001418,2]
[338703512,1726888242571,-500.0,0.0001418,2]
[338703514,1726888242581,-500.0,0.0001418,2]
[338703516,1726888242591,-500.0,0.0001418,2]
[338703518,1726888242601,-500.0,0.0001418,2]
[338703520,1726888242611,-500.0,0.00014182,2]
[338703522,1726888242621,-500.0,0.00014182,2]
[338703524,1726888242631,-500.0,0.00014182,2]
[338703527,1726888242643,-207.000777,0.00014182,2]
[338703529,1726888242652,-207.000777,0.00014182,2]
[338703531,1726888242662,-500.0,0.00014183,2]
[338703533,1726888242672,-200.0,0.00014183,2]
[338703535,1726888242683,-500.0,0.00014183,2]
[338703537,1726888242692,-500.0,0.00014183,2]
[338703539,1726888242703,-230.89952783,0.00014183,2]
[338703541,1726888242712,-87795.4931171,0.00014186,2]
[338703543,1726888242723,-151.0,0.00014186,2]
[338703545,1726888242734,-151.0,0.00014186,2]
[338703547,1726888242746,-151.0,0.00014186,2]
[338703550,1726888242755,-500.0,0.00014193,2]
[338703552,1726888242765,-194.55576354,0.00014193,2]
[338703554,1726888242774,-151.0,0.00014194,2]
[338703556,1726888242783,-528.21,0.00014195,2]
[338703558,1726888242794,-1000.0,0.00014195,2]
[338703560,1726888242803,-500.0,0.00014196,2]
[338703562,1726888242813,-500.0,0.00014196,2]
[338703564,1726888242822,-500.0,0.00014196,2]
[338703566,1726888242831,-500.0,0.00014196,2]
[338703568,1726888242841,-321.42921908,0.00014196,2]
[338703570,1726888242851,-500.0,0.00014196,2]
[338703572,1726888242860,-500.0,0.00014196,2]
[338703574,1726888242870,-500.0,0.00014196,2]
[338703576,1726888242880,-500.0,0.00014196,2]
[338703578,1726888242889,-500.0,0.00014196,2]
[338703580,1726888242899,-500.73302446,0.00014196,2]
[338703582,1726888242909,-500.0,0.00014196,2]
[338703584,1726888242920,-500.0,0.00014196,2]
[338703586,1726888242930,-500.76902416,0.00014196,2]
[338703588,1726888242939,-555.54394598,0.00014196,2]
[338703590,1726888242948,-503.3653671,0.00014196,2]
[338703592,1726888242958,-500.0,0.00014196,2]
[338703594,1726888242967,-500.0,0.00014196,2]
[338703596,1726888242977,-500.0,0.00014196,2]
[338703598,1726888242987,-500.0,0.00014196,2]
[338703600,1726888242996,-449.1000456,0.00014196,2]
[338703602,1726888243006,-472.25457701,0.00014196,2]
[338703604,1726888243015,-500.0,0.00014196,2]
[338703606,1726888243025,-500.0,0.00014196,2]
[338703607,1726888243034,-500.0,0.00014196,2]
[338703609,1726888243043,-500.0,0.00014196,2]
[338703611,1726888243053,-500.0,0.00014196,2]
[338703613,1726888243062,-500.0,0.00014196,2]
[338703615,1726888243072,-500.0,0.00014196,2]
[338703617,1726888243082,-876.01,0.00014196,2]
[338703619,1726888243091,-500.0,0.00014196,2]
[338703621,1726888243103,-388.24547586,0.00014196,2]
[338703623,1726888243112,-500.0,0.00014196,2]
[338703625,1726888243121,-500.0,0.00014196,2]
[338703627,1726888243131,-362.64083535,0.00014196,2]
[338703629,1726888243140,-502.3493915,0.00014196,2]
[338703631,1726888243150,-500.0,0.00014196,2]
[338703633,1726888243159,-503.03716034,0.00014196,2]
[338703635,1726888243168,-511.84251959,0.00014196,2]
[338703638,1726888243185,-500.0,0.00014196,2]
[338703641,1726888243200,-500.0,0.00014196,2]
[338703643,1726888243210,-500.0,0.00014196,2]
[338703645,1726888243220,-537.58,0.00014196,2]
[338703647,1726888243230,-500.0,0.00014196,2]
[338703649,1726888243240,-610.33,0.00014196,2]
[338703651,1726888243249,-589.98,0.00014196,2]
[338703653,1726888243260,-500.0,0.00014196,2]
[338703655,1726888243270,-500.0,0.00014196,2]
[338703657,1726888243279,-552.95,0.00014196,2]
[338703659,1726888243289,-252.43503364,0.00014196,2]
[338703662,1726888243300,-500.0,0.00014196,2]
[338703664,1726888243310,-511.06,0.00014196,2]
[338703666,1726888243320,-500.0,0.00014196,2]
[338703668,1726888243331,-610.58,0.00014196,2]
[338703670,1726888243343,-634.7,0.00014196,2]
[338703672,1726888243354,-500.0,0.00014196,2]
[338703674,1726888243364,-500.0,0.00014196,2]
[338703676,1726888243376,-500.0,0.00014196,2]
[338703678,1726888243389,-500.0,0.00014196,2]
[338703680,1726888243399,-500.0,0.00014196,2]
[338703682,1726888243409,-500.0,0.00014196,2]
[338703684,1726888243420,-500.0,0.00014196,2]
[338703686,1726888243430,-571.23651299,0.00014196,2]
[338703688,1726888243439,-500.0,0.00014196,2]
[338703690,1726888243449,-500.0,0.00014196,2]
[338703692,1726888243458,-500.0,0.00014196,2]
[338703694,1726888243468,-500.0,0.00014196,2]
[338703696,1726888243477,-500.0,0.00014196,2]
[338703698,1726888243487,-500.0,0.00014196,2]
[338703700,1726888243496,-500.0,0.00014196,2]
[338703702,1726888243506,-500.0,0.00014196,2]
[338703704,1726888243517,-500.0,0.00014196,2]
[338703706,1726888243530,-500.0,0.00014196,2]
[338703708,1726888243539,-500.0,0.00014196,2]
[338703710,1726888243550,-473.23230092,0.00014196,2]
[338703712,1726888243559,-500.0,0.00014196,2]
[338703714,1726888243569,-197.15480101,0.00014196,2]
[338703716,1726888243580,-500.0,0.00014196,2]
[338703719,1726888243590,-603.66501941,0.00014196,2]
[338703721,1726888243600,-500.0,0.00014196,2]
[338703723,1726888243611,-500.0,0.00014196,2]
[338703725,1726888243620,-500.0,0.00014196,2]
[338703727,1726888243631,-500.0,0.00014196,2]
[338703728,1726888243640,-500.0,0.00014196,2]
[338703731,1726888243651,-500.0,0.00014196,2]
[338703733,1726888243661,-500.0,0.00014196,2]
[338703735,1726888243677,-500.0,0.00014196,2]
[338703737,1726888243686,-500.0,0.00014196,2]
[338703739,1726888243696,-554.95,0.00014196,2]
[338703741,1726888243706,-500.0,0.00014196,2]
[338703743,1726888243716,-500.0,0.00014196,2]
[338703745,1726888243726,-500.0,0.00014196,2]
[338703747,1726888243736,-500.0,0.00014196,2]
[338703749,1726888243746,-500.0,0.00014196,2]
[338703751,1726888243756,-500.0,0.00014196,2]
[338703753,1726888243766,-600.32,0.00014196,2]
[338703755,1726888243776,-500.0,0.00014196,2]
[338703757,1726888243785,-500.0,0.00014196,2]
[338703759,1726888243795,-500.0,0.00014196,2]
[338703760,1726888243809,-500.0,0.00014196,2]
[338703761,1726888243819,-500.0,0.00014196,2]
[338703762,1726888243828,-500.0,0.00014196,2]
[338703763,1726888243838,-1662.03,0.00014196,2]
[338703764,1726888243848,-544.2,0.00014196,2]
[338703765,1726888243857,-408.21,0.00014196,2]
[338703766,1726888243867,-500.0,0.00014196,2]
[338703767,1726888243877,-500.0,0.00014196,2]
[338703768,1726888243887,-500.0,0.00014196,2]
[338703769,1726888243898,-500.0,0.00014196,2]
[338703770,1726888243907,-500.0,0.00014196,2]
[338703771,1726888243917,-500.0,0.00014196,2]
[338703772,1726888243927,-500.0,0.00014196,2]
[338703773,1726888243936,-500.0,0.00014196,2]
[338703774,1726888243947,-500.0,0.00014196,2]
[338703775,1726888243956,-500.0,0.00014196,2]
[338703776,1726888243966,-295.56,0.00014196,2]
[338703777,1726888243976,-500.0,0.00014196,2]
[338703778,1726888243985,-500.0,0.00014196,2]
[338703779,1726888243995,-500.0,0.00014196,2]
[338703780,1726888244004,-500.0,0.00014196,2]
[338703781,1726888244014,-500.0,0.00014196,2]
[338703782,1726888244024,-500.0,0.00014196,2]
[338703783,1726888244033,-500.0,0.00014196,2]
[338703784,1726888244044,-500.0,0.00014196,2]
[338703785,1726888244054,-500.0,0.00014196,2]
[338703786,1726888244063,-500.0,0.00014196,2]
[338703787,1726888244073,-500.0,0.00014196,2]
[338703789,1726888244082,-501.50384832,0.00014196,2]
[338703791,1726888244092,-500.0,0.00014196,2]
[338703793,1726888244102,-500.0,0.00014196,2]
[338703794,1726888244111,-500.0,0.00014196,2]
[338703796,1726888244121,-500.0,0.00014196,2]
[338703798,1726888244130,-500.0,0.00014196,2]
[338703800,1726888244140,-500.0,0.00014196,2]
[338703802,1726888244150,-500.0,0.00014196,2]
[338703804,1726888244160,-500.0,0.00014196,2]
[338703806,1726888244171,-500.0,0.00014196,2]
[338703808,1726888244180,-500.0,0.00014196,2]
[338703810,1726888244190,-500.0,0.00014196,2]
[338703812,1726888244199,-500.0,0.00014196,2]
[338703814,1726888244209,-500.0,0.00014196,2]
[338703816,1726888244218,-358.35,0.00014196,2]
[338703818,1726888244227,-500.0,0.00014196,2]
[338703820,1726888244237,-504.67002439,0.00014196,2]
[338703822,1726888244250,-500.0,0.00014196,2]
[338703824,1726888244259,-500.0,0.00014196,2]
[338703826,1726888244269,-500.0,0.00014196,2]
[338703828,1726888244278,-215.89666512,0.00014196,2]
[338703830,1726888244288,-207.000777,0.00014196,2]
[338703832,1726888244298,-207.000777,0.00014196,2]
[338703834,1726888244307,-150.112233,0.000142,2]
[338703836,1726888244318,-150.112233,0.000142,2]
[338703838,1726888244330,-150.112233,0.000142,2]
[338703840,1726888244341,-150.112233,0.000142,2]
[338703842,1726888244353,-150.112233,0.000142,2]
[338703844,1726888244362,-150.112233,0.000142,2]
[338703846,1726888244373,-151.0,0.00014205,2]
[338703849,1726888244388,-151.0,0.00014205,2]
[338703850,1726888244397,-151.0,0.00014205,2]
[338703852,1726888244407,-500.0,0.00014205,2]
[338703855,1726888244418,-151.0,0.00014207,2]
[338703857,1726888244428,-151.0,0.00014207,2]
[338703859,1726888244438,-151.0,0.00014207,2]
[338703861,1726888244448,-150.112233,0.000143,2]
[338703863,1726888244458,-150.112233,0.000143,2]
[338703865,1726888244470,-150.112233,0.000143,2]
[338703867,1726888244482,-150.112233,0.000143,2]
[338703869,1726888244492,-150.112233,0.000143,2]
[338703871,1726888244502,-177.849874,0.00014384,2]
[338703874,1726888244512,-1693.18825843,0.00014392,2]
[338703876,1726888244523,-150.112233,0.000144,2]
[338703878,1726888244533,-150.112233,0.000144,2]
[338703880,1726888244543,-150.112233,0.000144,2]
[338703882,1726888244553,-150.112233,0.000144,2]
[338703884,1726888244566,-330.56,0.00014439,2]
[338703886,1726888244576,-500.0,0.00014453,2]
[338703888,1726888244586,-1249.19,0.00014453,2]
[338703890,1726888244595,-500.0,0.00014453,2]
[338703892,1726888244605,-744.8,0.00014453,2]
[338703894,1726888244615,-500.0,0.00014453,2]
[338703896,1726888244626,-500.0,0.00014453,2]
[338703898,1726888244637,-19197.49,0.00014453,2]
[338703901,1726888244649,-3128.96,0.00014453,2]
[338703903,1726888244659,-500.0,0.00014454,2]
[338703905,1726888244670,-500.0,0.00014454,2]
[338703907,1726888244679,-192.44832327,0.00014454,2]
[338703909,1726888244689,-500.0,0.00014454,2]
[338703911,1726888244699,-619.18,0.00014454,2]
[338703913,1726888244710,-500.0,0.00014454,2]
[338703915,1726888244720,-500.0,0.00014454,2]
[338703917,1726888244732,-500.0,0.00014454,2]
[338703919,1726888244742,-500.0,0.00014454,2]
[338703921,1726888244753,-737.12,0.00014454,2]
[338703931,1726888244835,-500.0,0.00014454,2]
[338703933,1726888244846,-500.0,0.00014454,2]
[338703935,1726888244855,-644.2175822,0.00014454,2]
[338703936,1726888244864,-911.99,0.00014454,2]
[338703938,1726888244874,-514.8613394,0.00014454,2]
[338703940,1726888244883,-500.0,0.00014454,2]
[338703942,1726888244893,-500.0,0.00014454,2]
[338703944,1726888244902,-527.04212277,0.00014454,2]
[338703946,1726888244911,-504.37494687,0.00014454,2]
[338703948,1726888244920,-500.0,0.00014454,2]
[338703950,1726888244930,-500.0,0.00014454,2]
[338703951,1726888244939,-541.98605961,0.00014454,2]
[338703953,1726888244948,-500.0,0.00014454,2]
[338703955,1726888244958,-500.0,0.00014454,2]
[338703957,1726888244967,-500.0,0.00014454,2]
[338703959,1726888244976,-500.0,0.00014454,2]
[338703960,1726888244986,-500.0,0.00014454,2]
[338703962,1726888244996,-500.0,0.00014454,2]
[338703964,1726888245005,-500.0,0.00014454,2]
[338703966,1726888245015,-546.4504727,0.00014454,2]
[338703968,1726888245026,-295.02133353,0.00014454,2]
[338703970,1726888245035,-500.0,0.00014454,2]
[338703972,1726888245044,-580.82,0.00014454,2]
[338703974,1726888245054,-500.0,0.00014454,2]
[338703976,1726888245063,-500.0,0.00014454,2]
[338703978,1726888245073,-500.0,0.00014454,2]
[338703980,1726888245082,-500.0,0.00014454,2]
[338703982,1726888245091,-502.05347367,0.00014454,2]
[338703984,1726888245101,-500.0,0.00014454,2]
[338703986,1726888245110,-501.72649322,0.00014454,2]
[338703989,1726888245129,-500.0,0.00014454,2]
[338703991,1726888245140,-500.0,0.00014454,2]
[338703993,1726888245149,-500.0,0.00014454,2]
[338703995,1726888245158,-669.75155,0.00014454,2]
[338703997,1726888245168,-669.75155,0.00014454,2]
[338703999,1726888245177,-151.0,0.00014454,2]
[338704001,1726888245187,-151.0,0.00014454,2]
[338704003,1726888245196,-500.0,0.00014454,2]
[338704006,1726888245205,-470.22010164,0.00014454,2]
[338704008,1726888245216,-151.0,0.00014454,2]
[338704010,1726888245225,-500.0,0.00014454,2]
[338704012,1726888245234,-500.0,0.00014454,2]
[338704014,1726888245244,-152.341971,0.00014454,2]
[338704016,1726888245253,-500.0,0.00014454,2]
[338704017,1726888245262,-152.341971,0.00014454,2]
[338704019,1726888245272,-500.0,0.00014454,2]
[338704021,1726888245281,-500.0,0.00014454,2]
[338704023,1726888245290,-500.0,0.00014454,2]
[338704025,1726888245299,-500.0,0.00014454,2]
[338704027,1726888245309,-500.0,0.00014454,2]
[338704029,1726888245318,-500.0,0.00014454,2]
[338704031,1726888245327,-500.0,0.00014454,2]
[338704033,1726888245337,-500.0,0.00014454,2]
[338704035,1726888245346,-500.0,0.00014454,2]
[338704037,1726888245356,-151.0,0.00014454,2]
[338704039,1726888245365,-151.0,0.00014454,2]
[338704041,1726888245376,-500.0,0.00014454,2]
[338704043,1726888245386,-500.0,0.00014454,2]
[338704045,1726888245395,-151.0,0.00014454,2]
[338704047,1726888245404,-500.0,0.00014454,2]
[338704049,1726888245415,-500.0,0.00014454,2]
[338704051,1726888245425,-500.0,0.00014454,2]
[338704053,1726888245435,-226.728145,0.00014454,2]
[338704055,1726888245444,-500.0,0.00014454,2]
[338704057,1726888245454,-501.89778987,0.00014454,2]
[338704059,1726888245463,-226.728145,0.00014454,2]
[338704061,1726888245473,-500.0,0.00014454,2]
[338704063,1726888245483,-500.0,0.00014454,2]
[338704065,1726888245492,-518.82095985,0.00014454,2]
[338704067,1726888245504,-500.0,0.00014454,2]
[338704069,1726888245514,-463.620124,0.00014454,2]
[338704071,1726888245525,-632.95,0.00014454,2]
[338704073,1726888245536,-500.0,0.00014454,2]
[338704075,1726888245546,-463.620124,0.00014454,2]
[338704077,1726888245556,-500.0,0.00014454,2]
[338704079,1726888245566,-503.80585493,0.00014454,2]
[338704081,1726888245576,-500.0,0.00014454,2]
[338704083,1726888245585,-151.0,0.00014454,2]
[338704085,1726888245594,-917.115187,0.00014454,2]
[338704087,1726888245604,-498.32071313,0.00014454,2]
[338704089,1726888245613,-917.115187,0.00014454,2]
[338704091,1726888245623,-500.0,0.00014454,2]
[338704093,1726888245632,-501.9642815,0.00014454,2]
[338704095,1726888245642,-500.0,0.00014454,2]
[338704097,1726888245651,-551.255587,0.00014454,2]
[338704099,1726888245661,-551.255587,0.00014454,2]
[338704101,1726888245673,-500.0,0.00014454,2]
[338704104,1726888245683,-500.0,0.00014454,2]
[338704106,1726888245693,-151.0,0.00014454,2]
[338704108,1726888245702,-500.0,0.00014454,2]
[338704110,1726888245711,-500.0,0.00014454,2]
[338704112,1726888245721,-500.0,0.00014454,2]
[338704114,1726888245730,-434.778599,0.00014454,2]
[338704116,1726888245739,-151.0,0.00014454,2]
[338704118,1726888245753,-434.778599,0.00014454,2]
[338704120,1726888245762,-500.0,0.00014454,2]
[338704122,1726888245771,-151.0,0.00014454,2]
[338704124,1726888245780,-500.0,0.00014454,2]
[338704126,1726888245791,-500.0,0.00014454,2]
[338704128,1726888245800,-500.0,0.00014454,2]
[338704130,1726888245810,-500.0,0.00014454,2]
[338704132,1726888245819,-224.977347,0.00014454,2]
[338704134,1726888245829,-500.0,0.00014454,2]
[338704136,1726888245839,-224.977347,0.00014454,2]
[338704138,1726888245848,-243.35,0.00014454,2]
[338704140,1726888245858,-903.14,0.00014454,2]
[338704142,1726888245867,-500.0,0.00014454,2]
[338704144,1726888245877,-151.0,0.00014454,2]
[338704146,1726888245886,-507.72725761,0.00014454,2]
[338704148,1726888245896,-500.0,0.00014454,2]
[338704149,1726888245905,-500.0,0.00014454,2]
[338704151,1726888245915,-500.0,0.00014454,2]
[338704153,1726888245925,-1191.91,0.00014454,2]
[338704155,1726888245934,-506.57534725,0.00014454,2]
[338704157,1726888245943,-500.0,0.00014454,2]
[338704159,1726888245952,-500.0,0.00014454,2]
[338704161,1726888245962,-500.66355923,0.00014454,2]
[338704163,1726888245972,-151.0,0.00014454,2]
[338704165,1726888245981,-163.58509007,0.00014454,2]
[338704166,1726888245990,-502.14293627,0.00014454,2]
[338704168,1726888246000,-500.0,0.00014454,2]
[338704169,1726888246009,-500.0,0.00014454,2]
[338704171,1726888246019,-151.0,0.00014454,2]
[338704173,1726888246029,-817.09,0.00014454,2]
[338704174,1726888246039,-1314.639261,0.00014454,2]
[338704176,1726888246048,-539.45263553,0.00014454,2]
[338704177,1726888246057,-1314.639261,0.00014454,2]
[338704179,1726888246067,-308.100268,0.00014454,2]
[338704180,1726888246077,-519.00825817,0.00014454,2]
[338704182,1726888246087,-500.0,0.00014454,2]
[338704183,1726888246096,-500.0,0.00014454,2]
[338704185,1726888246106,-308.100268,0.00014454,2]
[338704187,1726888246115,-500.0,0.00014454,2]
[338704188,1726888246125,-151.0,0.00014454,2]
[338704190,1726888246134,-500.0,0.00014454,2]
[338704191,1726888246143,-500.0,0.00014454,2]
[338704193,1726888246153,-500.0,0.00014454,2]
[338704195,1726888246163,-500.0,0.00014454,2]
[338704197,1726888246172,-515.7772724,0.00014454,2]
[338704198,1726888246182,-500.0,0.00014454,2]
[338704200,1726888246195,-500.0,0.00014454,2]
[338704202,1726888246206,-330.32,0.00014454,2]
[338704203,1726888246218,-500.0,0.00014457,2]
[338704205,1726888246227,-200.0,0.00014457,2]
[338704207,1726888246239,-500.0,0.00014457,2]
[338704209,1726888246250,-160.0,0.00014459,2]
[338704210,1726888246259,-151.0,0.00014467,2]
[338704212,1726888246269,-151.0,0.00014469,2]
[338704214,1726888246280,-151.0,0.00014469,2]
[338704215,1726888246291,-500.0,0.0001447,2]
[338704217,1726888246302,-500.0,0.0001447,2]
[338704219,1726888246311,-500.0,0.0001447,2]
[338704221,1726888246321,-500.0,0.0001447,2]
[338704222,1726888246331,-500.0,0.0001447,2]
[338704224,1726888246341,-500.0,0.0001447,2]
[338704226,1726888246351,-500.0,0.0001447,2]
[338704227,1726888246361,-500.0,0.0001447,2]
[338704229,1726888246372,-500.0,0.0001447,2]
[338704231,1726888246386,-500.0,0.0001447,2]
[338704233,1726888246395,-500.0,0.0001447,2]
[338704234,1726888246404,-876.01,0.0001447,2]
[338704236,1726888246414,-500.0,0.0001447,2]
[338704238,1726888246425,-500.0,0.0001447,2]
[338704240,1726888246435,-500.0,0.0001447,2]
[338704241,1726888246444,-537.58,0.0001447,2]
[338704243,1726888246456,-500.0,0.0001447,2]
[338704244,1726888246466,-589.98,0.0001447,2]
[338704246,1726888246476,-552.95,0.0001447,2]
[338704248,1726888246488,-511.06,0.0001447,2]
[338704250,1726888246499,-500.0,0.0001447,2]
[338704251,1726888246509,-610.58,0.0001447,2]
[338704253,1726888246521,-634.7,0.0001447,2]
[338704255,1726888246532,-500.0,0.0001447,2]
[338704257,1726888246544,-500.0,0.0001447,2]
[338704259,1726888246555,-500.0,0.0001447,2]
[338704260,1726888246564,-588.35770433,0.0001447,2]
[338704262,1726888246574,-500.0,0.0001447,2]
[338704264,1726888246584,-500.0,0.0001447,2]
[338704266,1726888246594,-500.0,0.0001447,2]
[338704267,1726888246604,-500.0,0.0001447,2]
[338704269,1726888246614,-500.0,0.0001447,2]
[338704271,1726888246623,-500.0,0.0001447,2]
[338704272,1726888246633,-500.0,0.0001447,2]
[338704274,1726888246642,-500.0,0.0001447,2]
[338704276,1726888246652,-500.10580415,0.0001447,2]
[338704277,1726888246661,-500.0,0.0001447,2]
[338704279,1726888246671,-500.0,0.0001447,2]
[338704281,1726888246682,-500.0,0.0001447,2]
[338704283,1726888246691,-500.0,0.0001447,2]
[338704284,1726888246702,-500.0,0.0001447,2]
[338704286,1726888246712,-554.95,0.0001447,2]
[338704288,1726888246722,-500.0,0.0001447,2]
[338704290,1726888246733,-352.52088137,0.0001447,2]
[338704291,1726888246743,-468.02,0.0001447,2]
[338704293,1726888246753,-455.14504147,0.0001447,2]
[338704295,1726888246763,-500.0,0.0001447,2]
[338704297,1726888246773,-500.0,0.0001447,2]
[338704298,1726888246782,-1662.03,0.0001447,2]
[338704300,1726888246792,-500.0,0.0001447,2]
[338704302,1726888246802,-503.57348026,0.0001447,2]
[338704304,1726888246812,-500.0,0.0001447,2]
[338704305,1726888246822,-599.23616822,0.0001447,2]
[338704307,1726888246831,-503.33269326,0.0001447,2]
[338704309,1726888246841,-507.69635395,0.0001447,2]
[338704310,1726888246851,-298.46684654,0.0001447,2]
[338704312,1726888246861,-500.0,0.0001447,2]
[338704314,1726888246872,-500.0,0.0001447,2]
[338704316,1726888246882,-500.0,0.0001447,2]
[338704318,1726888246892,-500.0,0.0001447,2]
[338704319,1726888246902,-508.39753781,0.0001447,2]
[338704321,1726888246911,-453.65260676,0.0001447,2]
[338704323,1726888246921,-177.70138424,0.0001447,2]
[338704325,1726888246931,-553.9322331,0.0001447,2]
[338704326,1726888246941,-669.75155,0.0001447,2]
[338704328,1726888246952,-669.75155,0.0001447,2]
[338704330,1726888246963,-151.0,0.0001447,2]
[338704332,1726888246973,-151.0,0.0001447,2]
[338704333,1726888246983,-151.0,0.0001447,2]
[338704335,1726888246992,-152.341971,0.0001447,2]
[338704337,1726888247002,-152.341971,0.0001447,2]
[338704339,1726888247012,-151.0,0.0001447,2]
[338704340,1726888247022,-151.0,0.0001447,2]
[338704342,1726888247032,-226.728145,0.0001447,2]
[338704344,1726888247043,-226.728145,0.0001447,2]
[338704346,1726888247053,-463.620124,0.0001447,2]
[338704348,1726888247064,-463.620124,0.0001447,2]
[338704350,1726888247075,-151.0,0.0001447,2]
[338704351,1726888247087,-917.115187,0.0001447,2]
[338704353,1726888247098,-917.115187,0.0001447,2]
[338704355,1726888247109,-551.255587,0.0001447,2]
[338704357,1726888247119,-551.255587,0.0001447,2]
[338704359,1726888247129,-151.0,0.0001447,2]
[338704360,1726888247138,-434.778599,0.0001447,2]
[338704362,1726888247148,-151.0,0.0001447,2]
[338704364,1726888247158,-434.778599,0.0001447,2]
[338704366,1726888247177,-224.977347,0.0001447,2]
[338704367,1726888247187,-224.977347,0.0001447,2]
[338704369,1726888247198,-151.0,0.0001447,2]
[338704371,1726888247208,-1314.639261,0.0001447,2]
[338704373,1726888247220,-1314.639261,0.0001447,2]
[338704375,1726888247232,-308.100268,0.0001447,2]
[338704377,1726888247243,-308.100268,0.0001447,2]
[338704378,1726888247255,-151.064509,0.0001447,2]
[338704380,1726888247266,-500.0,0.00014473,2]
[338704382,1726888247276,-500.0,0.00014473,2]
[338704384,1726888247287,-251.909922,0.00014473,2]
[338704386,1726888247300,-500.0,0.00014473,2]
[338704388,1726888247311,-151.0,0.00014481,2]
[338704389,1726888247323,-151.0,0.00014481,2]
[338704391,1726888247335,-151.0,0.00014481,2]
[338704393,1726888247345,-151.0,0.00014482,2]
[338704395,1726888247355,-612.063777,0.00014492,2]
[338704397,1726888247368,-612.063777,0.00014492,2]
[338704398,1726888247381,-151.0,0.00014492,2]
[338704400,1726888247392,-207.000777,0.00014492,2]